bitfinex/quotes_SOLUSD_20250907
["timestamp","ask_amount","ask_price","bid_price","bid_amount"]
[1757289092421,33.58919134,206.51,206.5,0.03]
[1757289094268,37.38838268,206.51,206.5,0.03]
[1757289094552,39.32744757,206.51,206.5,0.03]
[1757289095320,53.42304158,206.51,206.5,0.03]
[1757289095518,53.42304158,206.51,206.48,0.03]
[1757289095833,43.39478535,206.49,206.48,0.03]
[1757289096032,81.21478535,206.49,206.48,0.03]
[1757289096218,81.93478535,206.49,206.48,0.03]
[1757289099031,78.13559401,206.49,206.48,0.03]
[1757289099242,81.93478535,206.49,206.48,0.03]
[1757289099946,78.13559401,206.49,206.48,0.03]
[1757289100152,81.93478535,206.49,206.48,0.03]
[1757289104063,39.59559401,206.48,206.47,0.03]
[1757289104358,39.59559401,206.46,206.45,0.03]
[1757289104533,81.95478535,206.46,206.45,0.03]
[1757289104731,82.67478535,206.46,206.45,0.03]
[1757289105151,78.87559401,206.46,206.45,0.03]
[1757289105359,13.59559401,206.45,206.37,0.71]
[1757289105534,39.36,206.44,206.37,0.71]
[1757289105734,3.79919134,206.38,206.37,0.71]
[1757289106064,38.66,206.38,206.37,0.71]
[1757289106264,42.45919134,206.38,206.37,0.71]
[1757289107069,42.45919134,206.38,206.31,2.75561589]
[1757289107357,38.66,206.38,206.35,0.71]
[1757289108257,38.66,206.38,206.3,26.0]
[1757289108447,38.66,206.38,206.36,0.71]
[1757289108746,38.66,206.38,206.37,0.71]
[1757289108936,42.45919134,206.38,206.37,0.71]
[1757289109137,42.45919134,206.38,206.3,26.0]
[1757289109339,38.66,206.38,206.31,0.71]
[1757289109528,3.79919134,206.35,206.31,0.71]
[1757289109734,38.74,206.34,206.32,0.71]
[1757289114746,14.54933437,206.42,206.32,0.71]
[1757289114957,3.79919134,206.38,206.32,0.71]
[1757289115137,38.8,206.37,206.32,0.71]
[1757289115341,3.79919134,206.36,206.33,0.71]
[1757289115547,38.8,206.37,206.33,0.71]
[1757289115752,0.72,206.44,206.33,0.71]
[1757289115932,31.0,206.43,206.33,0.71]
[1757289116128,3.79919134,206.4,206.33,0.71]
[1757289116356,38.78,206.39,206.33,0.71]
[1757289116559,42.57919134,206.39,206.33,0.71]
[1757289116760,38.78,206.39,206.33,0.71]
[1757289117228,38.78,206.39,206.35,3.8057823]
[1757289117453,38.78,206.39,206.36,0.71]
[1757289117654,38.78,206.39,206.37,0.71]
[1757289117949,42.5857823,206.39,206.37,0.71]
[1757289118153,38.78,206.39,206.37,0.71]
[1757289119345,38.78,206.39,206.38,0.71]
[1757289121957,41.21601398,206.39,206.34,26.0]
[1757289122129,41.21601398,206.39,206.35,0.71]
[1757289122330,41.21601398,206.39,206.34,28.43601398]
[1757289122331,41.21601398,206.39,206.36,0.71]
[1757289122749,41.21601398,206.39,206.37,0.71]
[1757289123149,2.43601398,206.38,206.35,0.71]
[1757289124364,38.78,206.39,206.36,0.71]
[1757289124655,41.21601398,206.39,206.36,0.71]
[1757289124846,38.78,206.39,206.32,13.59559401]
[1757289125155,41.21601398,206.39,206.35,0.71]
[1757289125355,41.21601398,206.39,206.36,0.66]
[1757289126761,41.21601398,206.39,206.33,2.43601398]
[1757289126958,38.78,206.39,206.34,0.66]
[1757289127256,41.89601398,206.39,206.35,0.66]
[1757289127443,41.21601398,206.39,206.35,0.66]
[1757289127648,2.43601398,206.38,206.35,0.66]
[1757289127851,2.43601398,206.36,206.32,0.66]
[1757289128060,0.68,206.36,206.32,0.66]
[1757289128243,0.68,206.35,206.31,28.43601398]
[1757289128450,38.68,206.35,206.31,28.43601398]
[1757289128659,38.68,206.35,206.32,0.66]
[1757289129342,38.68,206.35,206.31,28.43601398]
[1757289129653,41.11601398,206.35,206.3,2.43601398]
[1757289129863,0.68,206.34,206.3,3.09601398]
[1757289131049,39.36,206.35,206.31,2.43601398]
[1757289132466,0.68,206.34,206.31,2.43601398]
[1757289133454,38.68,206.35,206.31,2.43601398]
[1757289133654,39.36,206.35,206.31,2.43601398]
[1757289134348,0.68,206.34,206.31,2.43601398]
[1757289135569,38.68,206.35,206.31,2.43601398]
[1757289135866,0.68,206.34,206.31,2.43601398]
[1757289136068,0.68,206.33,206.31,2.43601398]
[1757289136265,39.36,206.35,206.31,2.43601398]
[1757289136463,38.68,206.35,206.31,2.43601398]
[1757289136666,0.68,206.34,206.31,2.43601398]
[1757289137054,0.68,206.33,206.29,26.0]
[1757289137370,38.68,206.35,206.31,2.43601398]
[1757289137571,0.68,206.34,206.31,2.43601398]
[1757289137747,0.68,206.33,206.31,2.43601398]
[1757289138161,38.68,206.35,206.3,2.43601398]
[1757289138363,0.68,206.34,206.3,2.43601398]
[1757289138549,0.68,206.33,206.3,2.43601398]
[1757289138858,0.68,206.34,206.3,2.43601398]
[1757289139060,0.68,206.33,206.29,26.0]
[1757289139264,0.68,206.33,206.3,5.23695287]
[1757289139563,0.68,206.34,206.3,3.09601398]
[1757289139781,0.68,206.33,206.29,26.0]
[1757289139967,39.36,206.35,206.3,5.8969353]
[1757289140148,0.68,206.34,206.29,26.0]
[1757289140355,0.68,206.33,206.31,2.43601398]
[1757289140766,0.68,206.33,206.29,26.66]
[1757289140955,0.68,206.33,206.3,5.23771341]
[1757289141266,0.68,206.33,206.3,2.43601398]
[1757289141668,0.68,206.37,206.31,3.09601398]
[1757289141858,38.5,206.36,206.31,3.09601398]
[1757289142056,0.68,206.35,206.32,2.43601398]
[1757289142259,39.2,206.35,206.32,2.43601398]
[1757289142552,39.2,206.35,206.31,0.66]
[1757289142771,38.52,206.35,206.32,3.09601398]
[1757289142984,0.68,206.35,206.32,2.43601398]
[1757289143158,39.2,206.35,206.32,2.43601398]
[1757289143565,39.2,206.35,206.31,0.66]
[1757289143867,0.68,206.35,206.32,2.43601398]
[1757289144066,39.18,206.35,206.32,2.43601398]
[1757289144457,0.68,206.39,206.34,2.43601398]
[1757289144662,0.68,206.39,206.35,3.09601398]
[1757289144663,38.5,206.38,206.35,3.09601398]
[1757289145057,39.18,206.38,206.35,2.43601398]
[1757289145758,38.5,206.38,206.35,2.43601398]
[1757289145963,38.48,206.39,206.37,2.43601398]
[1757289146164,39.16,206.39,206.36,2.43601398]
[1757289146363,0.68,206.38,206.35,2.43601398]
[1757289146862,0.68,206.38,206.33,26.66]
[1757289147175,0.68,206.38,206.35,2.43601398]
[1757289147352,0.68,206.38,206.34,0.66]
[1757289147554,0.68,206.38,206.35,2.43601398]
[1757289148284,0.68,206.38,206.33,26.66]
[1757289148458,0.68,206.38,206.35,2.43601398]
[1757289151156,38.48,206.39,206.36,2.43601398]
[1757289151361,0.68,206.38,206.36,2.43601398]
[1757289151585,0.68,206.38,206.34,0.66]
[1757289151764,0.68,206.38,206.35,2.43601398]
[1757289153576,38.48,206.39,206.35,2.43601398]
[1757289153885,39.16,206.39,206.35,3.09601398]
[1757289155478,0.68,206.38,206.33,26.0]
[1757289155784,0.68,206.38,206.36,2.43601398]
[1757289156889,0.68,206.37,206.33,26.0]
[1757289157180,0.68,206.36,206.34,5.24710607]
[1757289157389,0.68,206.36,206.33,26.0]
[1757289157568,0.68,206.36,206.34,5.24715307]
[1757289157900,0.68,206.37,206.32,26.66]
[1757289158065,0.68,206.37,206.34,2.43601398]
[1757289158374,38.48,206.39,206.34,0.66]
[1757289158375,39.16,206.39,206.34,0.66]
[1757289158577,0.68,206.38,206.34,2.43601398]
[1757289158780,0.68,206.37,206.32,26.66]
[1757289158986,0.68,206.37,206.34,2.43601398]
[1757289161296,39.16,206.39,206.35,2.43601398]
[1757289161489,39.16,206.39,206.35,3.09601398]
[1757289161685,0.68,206.38,206.33,26.66]
[1757289161890,0.68,206.37,206.34,2.81623523]
[1757289162192,0.68,206.36,206.34,0.03]
[1757289162585,0.68,206.35,206.34,0.03]
[1757289162786,2.43601398,206.38,206.34,2.84634656]
[1757289162979,0.68,206.36,206.34,0.03]
[1757289163895,2.43601398,206.38,206.34,0.03]
[1757289164203,0.68,206.37,206.34,0.03]
[1757289164688,0.68,206.36,206.34,0.03]
[1757289170774,38.24,206.37,206.34,0.03]
[1757289170987,38.92,206.37,206.34,2.46601398]
[1757289171186,38.24,206.37,206.34,2.46601398]
[1757289171407,0.68,206.36,206.34,2.46601398]
[1757289173086,0.68,206.36,206.34,0.03]
[1757289174301,0.68,206.36,206.34,2.46601398]
[1757289174504,0.68,206.36,206.35,2.43601398]
[1757289174681,0.68,206.36,206.34,2.46601398]
[1757289178316,0.68,206.36,206.34,0.03]
[1757289181208,42.0069092,206.38,206.34,0.03]
[1757289181391,0.68,206.36,206.34,0.03]
[1757289181804,42.0069092,206.38,206.34,0.03]
[1757289182012,0.68,206.35,206.34,0.03]
[1757289182388,0.68,206.37,206.34,0.03]
[1757289182911,0.68,206.36,206.34,0.03]
[1757289183811,0.68,206.35,206.34,0.03]
[1757289184196,38.2,206.38,206.34,0.03]
[1757289184396,0.68,206.37,206.34,0.03]
[1757289185014,3.8069092,206.38,206.34,0.03]
[1757289185209,0.67,206.36,206.34,0.03]
[1757289187013,41.9269092,206.38,206.34,0.03]
[1757289187213,0.67,206.36,206.34,0.03]
[1757289187514,0.67,206.36,206.34,3.8369092]
[1757289187703,0.67,206.36,206.34,0.03]
[1757289188206,0.67,206.42,206.36,26.0]
[1757289188399,0.06,206.45,206.41,3.8069092]
[1757289188597,0.06,206.45,206.44,3.8069092]
[1757289188996,0.06,206.45,206.44,4.4669092]
[1757289190023,0.73,206.45,206.42,26.0]
[1757289190203,0.67,206.44,206.42,26.0]
[1757289190519,0.67,206.43,206.42,26.0]
[1757289191017,0.67,206.43,206.35,0.66]
[1757289191317,3.8069092,206.42,206.34,14.57228168]
[1757289191520,38.08,206.41,206.37,29.8069092]
[1757289191698,0.67,206.4,206.36,3.8069092]
[1757289191894,0.67,206.39,206.37,2.80445912]
[1757289192212,38.08,206.4,206.36,3.8069092]
[1757289192213,0.67,206.38,206.36,3.8069092]
[1757289192410,0.67,206.38,206.37,2.80409847]
[1757289192918,0.67,206.38,206.36,3.8069092]
[1757289193121,0.67,206.37,206.36,3.8069092]
[1757289193324,0.67,206.37,206.36,6.6106797]
[1757289193700,0.67,206.39,206.36,6.6106797]
[1757289193926,0.67,206.38,206.34,0.03]
[1757289194106,0.67,206.38,206.36,3.8069092]
[1757289194305,0.67,206.37,206.36,3.8069092]
[1757289194505,0.67,206.37,206.34,0.03]
[1757289194719,0.67,206.36,206.34,0.03]
[1757289195306,26.9,206.35,206.34,0.03]
[1757289195703,27.57,206.35,206.34,0.03]
[1757289196627,38.04,206.35,206.34,3.8369092]
[1757289196824,38.71,206.35,206.34,3.8369092]
[1757289198224,38.71,206.35,206.34,0.03]
[1757289198421,0.67,206.35,206.34,0.03]
[1757289199714,38.71,206.35,206.34,0.03]
[1757289201020,3.8069092,206.39,206.34,3.8369092]
[1757289201219,0.67,206.37,206.34,3.8369092]
[1757289201416,38.0,206.36,206.34,3.8369092]
[1757289201807,0.67,206.36,206.34,3.8369092]
[1757289202012,38.0,206.35,206.34,3.8369092]
[1757289202708,0.67,206.36,206.34,3.8369092]
[1757289202930,38.0,206.35,206.34,3.8369092]
[1757289203428,38.67,206.35,206.34,3.8369092]
[1757289203823,38.0,206.35,206.34,3.8369092]
[1757289205030,0.67,206.37,206.34,3.8369092]
[1757289205232,38.65,206.36,206.34,3.8369092]
[1757289205438,0.67,206.36,206.34,3.8369092]
[1757289205724,0.67,206.38,206.34,3.8369092]
[1757289205925,0.67,206.41,206.37,3.8069092]
[1757289206126,0.67,206.41,206.39,3.8069092]
[1757289206339,0.67,206.43,206.4,3.8069092]
[1757289206534,37.96,206.42,206.4,3.8069092]
[1757289206829,38.63,206.41,206.35,0.66]
[1757289207034,38.63,206.41,206.39,3.8069092]
[1757289207229,37.98,206.4,206.39,3.8069092]
[1757289208533,38.65,206.4,206.39,3.8069092]
[1757289209238,0.67,206.4,206.39,3.8069092]
[1757289209437,38.63,206.4,206.39,3.8069092]
[1757289210536,38.63,206.4,206.38,3.8069092]
[1757289210738,0.67,206.39,206.38,3.8069092]
[1757289211038,0.67,206.39,206.34,0.03]
[1757289211238,0.67,206.39,206.38,3.8069092]
[1757289211425,37.96,206.4,206.38,3.8069092]
[1757289211747,0.67,206.4,206.39,3.8069092]
[1757289211923,37.96,206.4,206.39,3.8069092]
[1757289212423,38.63,206.4,206.39,3.8069092]
[1757289212629,37.96,206.4,206.39,3.8069092]
[1757289212841,38.63,206.4,206.39,3.8069092]
[1757289213426,38.0,206.4,206.39,3.8069092]
[1757289213940,38.0,206.4,206.36,0.66]
[1757289214118,38.0,206.4,206.39,3.8069092]
[1757289217544,0.67,206.41,206.39,3.8069092]
[1757289217733,37.96,206.4,206.39,3.8069092]
[1757289218451,0.67,206.41,206.39,3.8069092]
[1757289218633,0.67,206.41,206.38,0.03]
[1757289218634,0.67,206.41,206.4,3.8069092]
[1757289218830,38.61,206.41,206.4,3.8069092]
[1757289219228,38.61,206.41,206.38,0.03]
[1757289219542,0.06,206.45,206.4,3.8069092]
[1757289219745,38.6,206.44,206.42,3.8069092]
[1757289219929,0.66,206.43,206.42,3.8069092]
[1757289220346,37.92,206.43,206.42,3.8069092]
[1757289221048,0.72,206.45,206.42,3.8069092]
[1757289221231,37.92,206.44,206.43,3.8069092]
[1757289221839,38.58,206.44,206.39,106.1]
[1757289222030,38.62,206.43,206.41,3.8069092]
[1757289222232,0.66,206.43,206.41,3.8069092]
[1757289222428,38.62,206.43,206.42,3.8069092]
[1757289222642,38.62,206.43,206.41,3.8069092]
[1757289223030,38.62,206.43,206.42,3.8069092]
[1757289223642,37.96,206.43,206.42,3.8069092]
[1757289225049,0.72,206.45,206.42,3.8069092]
[1757289225255,38.62,206.44,206.43,3.8069092]
[1757289225459,0.06,206.45,206.43,18.11250321]
[1757289225624,0.06,206.45,206.44,4.5169092]
[1757289226054,0.06,206.45,206.44,7.29524778]
[1757289228560,0.06,206.45,206.44,46.89084179]
[1757289229238,0.06,206.45,206.44,49.94084179]
[1757289229439,0.06,206.48,206.47,43.40250321]
[1757289229671,0.06,206.48,206.47,46.18084179]
[1757289229985,0.06,206.48,206.47,46.89084179]
[1757289230195,0.06,206.48,206.47,80.23208285]
[1757289230364,0.06,206.5,206.49,62.6638184]
[1757289230564,0.06,206.5,206.49,65.44215698]
[1757289230764,0.06,206.5,206.49,40.15215698]
[1757289232161,0.06,206.58,206.53,26.0]
[1757289232361,0.72,206.58,206.57,3.8069092]
[1757289232557,0.66,206.57,206.54,26.0]
[1757289232870,0.66,206.56,206.55,3.8069092]
[1757289235321,0.72,206.56,206.55,3.8069092]
[1757289238412,0.72,206.56,206.55,2.43101825]
[1757289239891,0.72,206.56,206.54,26.0]
[1757289240210,0.06,206.56,206.49,0.71]
[1757289240395,0.06,206.56,206.52,2.43101825]
[1757289240713,3.09101825,206.55,206.5,2.43101825]
[1757289240890,3.09101825,206.54,206.49,28.43101825]
[1757289241214,0.66,206.53,206.49,28.43101825]
[1757289241406,0.66,206.52,206.49,28.43101825]
[1757289241595,0.66,206.51,206.49,28.43101825]
[1757289243410,0.66,206.5,206.45,2.43101825]
[1757289243614,0.66,206.49,206.45,2.43101825]
[1757289244004,0.66,206.48,206.46,2.43101825]
[1757289244206,0.66,206.47,206.46,2.43101825]
[1757289245412,37.8,206.51,206.46,2.43101825]
[1757289245718,0.71,206.49,206.47,2.43101825]
[1757289245928,0.71,206.48,206.47,2.43101825]
[1757289246127,0.71,206.48,206.46,2.43101825]
[1757289247593,0.71,206.48,206.47,2.43101825]
[1757289250300,0.71,206.48,206.44,80.13]
[1757289250614,0.71,206.48,206.47,2.43101825]
[1757289252608,37.8,206.51,206.47,2.43101825]
[1757289252805,0.71,206.5,206.47,2.43101825]
[1757289253004,0.71,206.49,206.47,2.43101825]
[1757289253806,37.8,206.51,206.47,2.43101825]
[1757289254011,0.71,206.5,206.47,2.43101825]
[1757289254219,0.71,206.49,206.47,2.43101825]
[1757289254708,0.71,206.49,206.47,2.46101825]
[1757289254910,38.43,206.52,206.48,3.09101825]
[1757289255110,37.72,206.52,206.47,0.03]
[1757289255319,38.43,206.52,206.51,2.43101825]
[1757289255514,38.41,206.52,206.51,2.43101825]
[1757289255819,38.43,206.52,206.51,2.43101825]
[1757289256023,38.43,206.52,206.5,2.43101825]
[1757289256221,0.06,206.54,206.5,2.43101825]
[1757289256528,0.71,206.51,206.48,2.43101825]
[1757289256827,0.71,206.51,206.49,2.43101825]
[1757289257119,37.7,206.5,206.49,2.43101825]
[1757289259723,37.72,206.5,206.49,2.43101825]
[1757289260018,0.06,206.54,206.52,26.0]
[1757289260221,0.06,206.54,206.48,2.76605921]
[1757289260222,0.06,206.54,206.53,2.43101825]
[1757289260800,0.06,206.54,206.53,3.09101825]
[1757289261612,0.06,206.54,206.53,31.8581326]
[1757289264518,0.06,206.54,206.53,31.1981326]
[1757289264926,0.06,206.54,206.53,31.8581326]
[1757289265529,0.06,206.54,206.53,31.1981326]
[1757289265728,0.06,206.54,206.53,31.8581326]
[1757289266025,0.06,206.54,206.53,5.1981326]
[1757289269223,0.06,206.54,206.53,85.2981326]
[1757289269537,0.77,206.54,206.53,85.2981326]
[1757289269919,0.77,206.54,206.53,82.86711435]
[1757289270129,0.77,206.54,206.47,0.03]
[1757289270434,0.77,206.54,206.49,2.43101825]
[1757289270636,0.71,206.53,206.5,2.775419]
[1757289270822,0.71,206.52,206.49,2.43101825]
[1757289271022,38.39,206.51,206.5,2.77535989]
[1757289273312,37.68,206.51,206.5,2.77535989]
[1757289273516,38.39,206.51,206.5,2.77535989]
[1757289273742,38.39,206.51,206.5,0.03]
[1757289278830,0.71,206.51,206.5,0.03]
[1757289279030,38.39,206.51,206.5,0.03]
[1757289281631,37.68,206.51,206.5,2.46101825]
[1757289281824,38.37,206.51,206.5,2.80844434]
[1757289282438,37.68,206.51,206.5,2.80844434]
[1757289285849,37.68,206.51,206.5,0.03]
[1757289286048,37.68,206.51,206.5,2.80929762]
[1757289286252,38.37,206.51,206.5,2.80929762]
[1757289286432,37.68,206.51,206.5,2.80929762]
[1757289286945,38.37,206.51,206.5,2.80929762]
[1757289288651,37.68,206.51,206.5,2.80929762]
[1757289289553,38.37,206.51,206.5,2.80929762]
[1757289289735,0.69,206.51,206.5,2.80929762]
[1757289289934,37.68,206.51,206.5,2.80929762]
[1757289291231,37.68,206.51,206.5,2.80964583]
[1757289292130,0.75,206.52,206.5,2.80964583]
[1757289292345,37.68,206.51,206.5,0.03]
[1757289292553,37.74,206.51,206.5,2.80977606]
[1757289293565,0.06,206.51,206.5,5.24079431]
[1757289293766,38.43,206.51,206.5,2.80977606]
[1757289304377,0.06,206.52,206.5,46.86655726]
[1757289304544,0.06,206.52,206.51,6.58096325]
[1757289304738,0.06,206.52,206.51,7.24096325]
[1757289305150,0.06,206.52,206.51,9.1789008]
[1757289305568,0.06,206.52,206.51,28.59793755]
[1757289305769,0.06,206.52,206.51,32.39912474]
[1757289306667,0.06,206.52,206.51,75.04471875]
[1757289306853,0.00880684,206.52,206.51,75.04471875]
[1757289307642,0.00880684,206.52,206.51,77.8250942]
[1757289313268,0.00880684,206.52,206.51,74.02390701]
[1757289313576,0.00880684,206.52,206.51,77.8250942]
[1757289314385,0.00880684,206.52,206.51,157.9250942]
[1757289314559,0.06,206.54,206.52,13.59559401]
[1757289314755,0.06,206.54,206.53,42.37596946]
[1757289314955,0.06,206.54,206.53,43.09596946]
[1757289315170,0.06,206.54,206.53,46.89715665]
[1757289315555,0.06,206.54,206.53,48.83481258]
[1757289318370,0.06,206.54,206.53,77.88481258]
[1757289318878,0.06,206.54,206.53,77.16481258]
[1757289319181,0.77,206.54,206.53,75.22715665]
[1757289319384,0.77,206.54,206.53,71.42596946]
[1757289319568,0.77,206.54,206.53,75.22715665]
[1757289320083,0.77,206.54,206.53,28.78037545]
[1757289320299,0.77,206.54,206.53,32.58156264]
[1757289320473,0.77,206.54,206.53,2.78037545]
[1757289320860,0.77,206.54,206.53,6.58156264]
[1757289321172,0.77,206.54,206.53,2.78037545]
[1757289321576,0.77,206.54,206.52,6.58156264]
[1757289321786,0.06,206.54,206.53,2.78037545]
[1757289322088,0.06,206.54,206.53,6.58156264]
[1757289322286,0.77,206.54,206.53,6.58156264]
[1757289324362,0.77,206.54,206.53,2.78037545]
[1757289325179,0.77,206.54,206.53,2.77411767]
[1757289325385,0.77,206.54,206.52,3.80118719]
[1757289325577,0.71,206.53,206.51,29.80118719]
[1757289325781,0.71,206.52,206.51,29.80118719]
[1757289325969,0.71,206.52,206.51,32.57552108]
[1757289327788,0.77,206.54,206.51,32.57552108]
[1757289327984,0.06,206.54,206.53,3.80118719]
[1757289328676,0.77,206.54,206.53,3.80118719]
[1757289329070,0.77,206.54,206.5,0.03]
[1757289329268,0.77,206.54,206.53,29.80118719]
[1757289330985,0.06,206.54,206.53,3.80118719]
[1757289331182,0.77,206.54,206.53,6.57558525]
[1757289332766,0.06,206.54,206.53,6.57558525]
[1757289334567,0.06,206.54,206.53,7.29558525]
[1757289334772,0.06,206.54,206.53,6.57558525]
[1757289335788,0.06,206.54,206.53,3.49439806]
[1757289335970,0.06,206.54,206.53,6.57558525]
[1757289336286,0.06,206.54,206.53,7.29558525]
[1757289336484,0.06,206.54,206.53,6.57558525]
[1757289340989,0.06,206.54,206.53,6.57558525]
[1757289349397,0.06,206.54,206.53,86.67558525]
[1757289349776,0.72,206.54,206.53,2.77439806]
[1757289350692,0.72,206.54,206.52,0.03]
[1757289354794,37.62,206.53,206.52,0.03]
[1757289355299,38.28,206.53,206.52,0.03]
[1757289355907,38.28,206.53,206.52,2.80485097]
[1757289356292,38.28,206.53,206.52,0.03]
[1757289357016,0.66,206.53,206.52,0.03]
[1757289357319,38.3,206.53,206.52,2.80469192]
[1757289360415,38.3,206.53,206.52,0.03]
[1757289361915,38.3,206.53,206.52,2.80504412]
[1757289363024,38.3,206.53,206.52,0.03]
[1757289364509,40.73232316,206.53,206.52,0.03]
[1757289364747,38.3,206.53,206.52,0.03]
[1757289364932,40.73232316,206.53,206.52,0.03]
[1757289367700,0.66,206.53,206.52,0.03]
[1757289367906,38.28,206.53,206.52,0.03]
[1757289370118,0.06,206.54,206.52,2.46232316]
[1757289370319,0.75,206.54,206.53,2.43232316]
[1757289370522,38.37,206.54,206.53,2.43232316]
[1757289370714,0.75,206.54,206.53,2.43232316]
[1757289370927,37.68,206.54,206.53,2.43232316]
[1757289371117,38.37,206.54,206.53,2.43232316]
[1757289372329,0.75,206.54,206.53,2.43232316]
[1757289372723,37.68,206.54,206.53,3.11232316]
[1757289372924,37.68,206.54,206.53,5.86580107]
[1757289373307,37.68,206.54,206.53,2.75347791]
[1757289373623,37.68,206.54,206.53,5.86580107]
[1757289376338,37.68,206.54,206.53,5.18580107]
[1757289379638,37.68,206.54,206.53,2.75347791]
[1757289379818,37.68,206.54,206.53,5.18580107]
[1757289385231,37.66,206.54,206.53,5.18580107]
[1757289391143,37.66,206.54,206.53,5.86580107]
[1757289391556,37.66,206.54,206.53,5.18580107]
[1757289392056,0.06,206.54,206.53,5.86580107]
[1757289392231,0.06,206.55,206.54,13.59559401]
[1757289392431,0.06,206.55,206.54,28.75347791]
[1757289392744,0.06,206.55,206.54,31.18580107]
[1757289393139,0.06,206.55,206.54,33.80355086]
[1757289399334,0.06,206.55,206.54,30.6912277]
[1757289399556,0.73,206.55,206.54,5.18580107]
[1757289403437,0.06,206.55,206.54,5.18580107]
[1757289403843,0.73,206.55,206.54,2.75347791]
[1757289404045,0.73,206.55,206.54,5.18580107]
[1757289404666,0.06,206.55,206.54,5.18580107]
[1757289406778,0.73,206.55,206.54,2.75347791]
[1757289406963,0.73,206.55,206.54,5.18580107]
[1757289409248,0.73,206.55,206.54,2.75347791]
[1757289409447,0.73,206.55,206.54,5.18580107]
[1757289411565,0.06,206.55,206.54,5.18580107]
[1757289411773,0.73,206.55,206.54,5.18580107]
[1757289413954,0.06,206.55,206.54,5.18580107]
[1757289414955,0.06,206.55,206.54,2.75347791]
[1757289415158,0.06,206.55,206.54,5.18580107]
[1757289415552,0.06,206.55,206.54,7.80364473]
[1757289415771,0.06,206.55,206.54,5.37132157]
[1757289416261,0.06,206.55,206.54,7.80364473]
[1757289417568,0.06,206.55,206.54,7.12364473]
[1757289417770,0.06,206.55,206.54,5.18580107]
[1757289421863,0.06,206.55,206.54,2.75347791]
[1757289422064,0.73,206.55,206.54,5.18580107]
[1757289422477,0.73,206.55,206.54,6.55282625]
[1757289422772,0.73,206.55,206.54,2.75347791]
[1757289422957,0.73,206.55,206.53,0.03]
[1757289422958,2.66840711,206.55,206.53,0.03]
[1757289423370,0.73,206.55,206.53,3.82934834]
[1757289423576,3.33840711,206.54,206.53,3.82934834]
[1757289423964,0.67,206.54,206.53,6.58302882]
[1757289425169,0.06,206.55,206.53,7.30302882]
[1757289425477,0.06,206.55,206.54,7.27302882]
[1757289426178,0.06,206.55,206.54,9.21087249]
[1757289426791,0.06,206.55,206.54,7.27302882]
[1757289427382,0.06,206.55,206.54,9.21087249]
[1757289428679,0.06,206.55,206.54,4.69152415]
[1757289428883,0.06,206.55,206.54,8.49087249]
[1757289429085,0.06,206.55,206.54,6.55302882]
[1757289429284,0.06,206.55,206.54,16.34927449]
[1757289429588,0.06,206.55,206.54,20.86862283]
[1757289429774,0.06,206.55,206.54,22.8061849]
[1757289430180,0.06,206.55,206.54,4.69124255]
[1757289430477,0.06,206.55,206.54,8.49059089]
[1757289432983,0.73,206.55,206.54,4.69124255]